lending/lending_fUSD_20240603
["ID","MTS","AMOUNT","RATE_DAILY","PERIOD"]
[328442347,1717391438688,-112.95737698,0.00028215,4]
[328442348,1717391438700,-387.04262302,0.00028215,4]
[328442349,1717391438709,-500.0,0.00028215,4]
[328442350,1717391438718,-500.0,0.00028215,4]
[328442351,1717391438727,-696.99011448,0.00028215,4]
[328442352,1717391438740,-1060.84988552,0.00028215,4]
[328442353,1717391438750,-500.0,0.00028215,4]
[328442354,1717391438759,-447.13332352,0.00028215,4]
[328442355,1717391438770,-52.86667648,0.00028215,4]
[328442356,1717391438780,-500.0,0.00028215,4]
[328442357,1717391438789,-500.0,0.00028215,4]
[328442358,1717391438798,-500.0,0.00028215,4]
[328442359,1717391438807,-500.0,0.00028215,4]
[328442360,1717391438816,-500.0,0.00028215,4]
[328442361,1717391438825,-500.0,0.00028215,4]
[328442362,1717391438835,-500.0,0.00028215,4]
[328442363,1717391438844,-500.0,0.00028215,4]
[328442364,1717391438853,-500.0,0.00028215,4]
[328442365,1717391438862,-219.53132108,0.00028215,4]
[328442366,1717391438873,-500.0,0.00028215,4]
[328442367,1717391438882,-1598.91,0.00028215,4]
[328442368,1717391438892,-500.0,0.00028215,4]
[328442369,1717391438901,-500.0,0.00028215,4]
[328442370,1717391438910,-73.50992244,0.00028215,4]
[328442371,1717391438922,-426.49007756,0.00028215,4]
[328442372,1717391438931,-500.0,0.00028215,4]
[328442373,1717391438940,-500.0,0.00028215,4]
[328442374,1717391438949,-558.2,0.00028215,4]
[328442375,1717391438959,-500.0,0.00028215,4]
[328442376,1717391438968,-500.0,0.00028215,4]
[328442377,1717391438977,-500.0,0.00028215,4]
[328442378,1717391438986,-500.0,0.00028215,4]
[328442379,1717391438995,-500.848147,0.00028215,4]
[328442380,1717391439005,-507.84,0.00028215,4]
[328442381,1717391439014,-500.0,0.00028215,4]
[328442382,1717391439024,-500.0,0.00028215,4]
[328442383,1717391439033,-500.0,0.00028215,4]
[328442385,1717391439043,-500.0,0.00028215,4]
[328442387,1717391439053,-290.14083395,0.00028215,4]
[328442389,1717391439065,-209.85916605,0.00028215,4]
[328442391,1717391439075,-578.20122306,0.00028216,4]
[328442393,1717391439084,-500.0,0.00028216,4]
[328442395,1717391439094,-500.0,0.00028216,4]
[328442397,1717391439103,-368.20966803,0.00028216,4]
[328442398,1717391439112,-500.0,0.00028216,4]
[328442399,1717391439123,-500.0,0.00028216,4]
[328442400,1717391439132,-500.0,0.00028216,4]
[328442401,1717391439142,-581.86501445,0.00028216,4]
[328442402,1717391439152,-475.41347991,0.00028216,4]
[328442403,1717391439161,-500.0,0.00028216,4]
[328442404,1717391439170,-500.0,0.00028216,4]
[328442405,1717391439179,-500.0,0.00028216,4]
[328442406,1717391439189,-500.0,0.00028216,4]
[328442407,1717391439198,-618.38626157,0.00028216,4]
[328442408,1717391439207,-436.20358693,0.00028216,4]
[328442409,1717391439219,-63.79641307,0.00028216,4]
[328442410,1717391439228,-500.0,0.00028216,4]
[328442411,1717391439238,-740.18,0.00028216,4]
[328442412,1717391439247,-500.0,0.00028216,4]
[328442413,1717391439256,-500.0,0.00028216,4]
[328442414,1717391439266,-500.0,0.00028216,4]
[328442415,1717391439276,-500.0,0.00028216,4]
[328442416,1717391439286,-500.0,0.00028216,4]
[328442417,1717391439295,-500.0,0.00028216,4]
[328442418,1717391439304,-619.8371891,0.00028216,4]
[328442419,1717391439313,-651.79,0.00028216,4]
[328442420,1717391439322,-1358.14,0.00028216,4]
[328442421,1717391439331,-212.55019783,0.00028216,4]
[328442422,1717391439343,-287.44980217,0.00028216,4]
[328442423,1717391439352,-500.0,0.00028216,4]
[328442424,1717391439361,-500.0,0.00028216,4]
[328442425,1717391439371,-500.0,0.00028216,4]
[328442426,1717391439380,-500.0,0.00028216,4]
[328442427,1717391439393,-15974.20089961,0.00028216,4]
[328442428,1717391439404,-358.33485164,0.00028216,4]
[328442429,1717391439415,-603.45575644,0.00028216,4]
[328442430,1717391439426,-910.60655848,0.00028216,4]
[328442431,1717391439439,-399.70833916,0.00028216,4]
[328442432,1717391439450,-4000.51557837,0.00028216,4]
[328442433,1717391439461,-672.57,0.00028216,4]
[328442434,1717391439478,-410.63676069,0.00028216,4]
[328442435,1717391441018,-443.43736833,0.00028216,4]
[328442436,1717391441030,-1069.96101824,0.00028216,4]
[328442437,1717391441041,-7548.69529269,0.00028216,4]
[328442438,1717391441064,-505.53116172,0.00028216,4]
[328442439,1717391441221,-364.68641463,0.00028216,4]
[328442440,1717391441231,-500.0,0.00028216,4]
[328442441,1717391441240,-298.9942741,0.00028216,4]
[328442442,1717391442176,-201.0057259,0.00028216,4]
[328442443,1717391442186,-192.71452797,0.00028216,4]
[328442444,1717391442198,-307.28547203,0.00028216,4]
[328442445,1717391442208,-500.0,0.00028216,4]
[328442447,1717391442217,-63.32452706,0.00028216,4]
[328442486,1717391443440,-436.67547294,0.00028216,4]
[328442487,1717391443451,-500.0,0.00028216,4]
[328442488,1717391443461,-500.0,0.00028216,4]
[328442489,1717391443470,-500.0,0.00028216,4]
[328442490,1717391443479,-500.0,0.00028216,4]
[328442491,1717391443489,-713.89,0.00028216,4]
[328442492,1717391443498,-378.81,0.00028216,4]
[328442493,1717391443508,-500.0,0.00028216,4]
[328442494,1717391443518,-396.94785895,0.00028216,4]
[328442495,1717391443529,-838.67,0.00028216,4]
[328442496,1717391443539,-329.52142552,0.00028216,4]
[328442497,1717391443549,-500.0,0.00028216,4]
[328442498,1717391443559,-500.0,0.00028216,4]
[328442499,1717391443569,-500.0,0.00028216,4]
[328442500,1717391443578,-500.0,0.00028216,4]
[328442501,1717391443587,-513.02,0.00028216,4]
[328442502,1717391443597,-500.0,0.00028347,2]
[328442503,1717391443606,-500.0,0.00028347,2]
[328442504,1717391443615,-294.08734587,0.00028347,2]
[328442505,1717391443624,-500.0,0.00028347,2]
[328442506,1717391443635,-507.40622035,0.00028347,2]
[328442507,1717391443644,-500.0,0.00028347,2]
[328442508,1717391443655,-201.32988721,0.00028347,2]
[328442509,1717391443664,-431.745523,0.00028347,2]
[328442510,1717391443674,-14124.47311362,0.00028348,2]
[328442511,1717391443816,-4304.73686472,0.00028348,2]
[328442512,1717391443826,-500.0,0.00028488,4]
[328442513,1717391443835,-500.0,0.00028489,4]
[328442514,1717391443844,-500.0,0.00028489,4]
[328442515,1717391443854,-500.0,0.00028489,4]
[328442516,1717391443863,-500.0,0.00028489,4]
[328442517,1717391443873,-500.0,0.00028489,4]
[328442518,1717391443885,-500.0,0.00028489,4]
[328442519,1717391443895,-500.0,0.00028489,4]
[328442520,1717391443904,-500.0,0.00028489,4]
[328442521,1717391443913,-500.0,0.00028489,4]
[328442522,1717391443922,-500.0,0.00028489,4]
[328442523,1717391443931,-500.0,0.00028489,4]
[328442524,1717391443940,-500.0,0.00028489,4]
[328442525,1717391443950,-500.0,0.00028489,4]
[328442526,1717391443960,-500.0,0.00028489,4]
[328442527,1717391443969,-813.99,0.00028489,4]
[328442528,1717391443979,-500.0,0.00028489,4]
[328442529,1717391443989,-500.0,0.00028489,4]
[328442530,1717391443999,-500.0,0.00028489,4]
[328442531,1717391444009,-500.0,0.00028489,4]
[328442532,1717391444019,-612.17087136,0.00028489,4]
[328442533,1717391444030,-500.0,0.00028489,4]
[328442534,1717391444039,-1757.84,0.00028489,4]
[328442535,1717391444049,-500.0,0.00028489,4]
[328442536,1717391444060,-500.0,0.00028489,4]
[328442537,1717391444071,-500.0,0.00028489,4]
[328442538,1717391444080,-527.69467362,0.00028489,4]
[328442539,1717391444089,-500.0,0.00028489,4]
[328442540,1717391444099,-500.0,0.00028489,4]
[328442541,1717391444108,-500.0,0.00028489,4]
[328442542,1717391444117,-500.0,0.00028489,4]
[328442543,1717391444127,-500.0,0.00028489,4]
[328442544,1717391444136,-500.0,0.00028489,4]
[328442545,1717391444146,-500.0,0.00028489,4]
[328442546,1717391444155,-500.0,0.00028489,4]
[328442547,1717391444164,-1598.91,0.00028489,4]
[328442548,1717391444174,-500.0,0.00028489,4]
[328442549,1717391444183,-500.0,0.00028489,4]
[328442550,1717391444192,-500.0,0.00028489,4]
[328442551,1717391444201,-500.0,0.00028489,4]
[328442552,1717391444211,-500.0,0.00028489,4]
[328442553,1717391444220,-558.2,0.00028489,4]
[328442554,1717391444230,-500.0,0.00028489,4]
[328442555,1717391444239,-500.0,0.00028489,4]
[328442556,1717391444250,-500.0,0.00028489,4]
[328442557,1717391444259,-500.0,0.00028489,4]
[328442558,1717391444269,-507.84,0.00028489,4]
[328442559,1717391444278,-500.0,0.00028489,4]
[328442560,1717391444287,-500.0,0.00028489,4]
[328442561,1717391444295,-500.0,0.00028489,4]
[328442562,1717391444304,-375.09691006,0.00028489,4]
[328442563,1717391444313,-500.0,0.00028489,4]
[328442564,1717391444322,-500.0,0.0002849,4]
[328442565,1717391444331,-444.90416008,0.0002849,4]
[328442566,1717391444339,-500.0,0.0002849,4]
[328442567,1717391444348,-500.0,0.0002849,4]
[328442568,1717391444357,-500.0,0.0002849,4]
[328442569,1717391444366,-500.0,0.0002849,4]
[328442570,1717391444377,-587.47291923,0.0002849,4]
[328442571,1717391444389,-500.0,0.0002849,4]
[328442572,1717391444398,-500.0,0.0002849,4]
[328442573,1717391444407,-500.0,0.0002849,4]
[328442574,1717391444416,-740.18,0.0002849,4]
[328442575,1717391444427,-500.0,0.0002849,4]
[328442576,1717391444436,-270.3148902,0.0002849,4]
[328442577,1717391444444,-500.0,0.0002849,4]
[328442578,1717391444453,-500.0,0.0002849,4]
[328442579,1717391444462,-500.0,0.0002849,4]
[328442580,1717391444473,-500.0,0.0002849,4]
[328442581,1717391444482,-651.79,0.0002849,4]
[328442582,1717391444491,-1358.14,0.0002849,4]
[328442583,1717391444500,-500.0,0.0002849,4]
[328442584,1717391444510,-500.0,0.0002849,4]
[328442585,1717391444519,-500.0,0.0002849,4]
[328442586,1717391444529,-500.0,0.0002849,4]
[328442587,1717391444539,-500.0,0.0002849,4]
[328442588,1717391444551,-33262.34,0.0002849,4]
[328442589,1717391444561,-500.0,0.0002849,4]
[328442590,1717391444571,-500.0,0.0002849,4]
[328442591,1717391444580,-500.0,0.0002849,4]
[328442592,1717391444590,-500.0,0.0002849,4]
[328442593,1717391444599,-500.0,0.0002849,4]
[328442594,1717391444610,-500.0,0.0002849,4]
[328442595,1717391444619,-500.0,0.0002849,4]
[328442596,1717391444629,-500.0,0.0002849,4]
[328442597,1717391444638,-500.0,0.0002849,4]
[328442598,1717391444647,-713.89,0.0002849,4]
[328442599,1717391444656,-500.0,0.0002849,4]
[328442600,1717391444666,-838.67,0.0002849,4]
[328442601,1717391444677,-500.0,0.0002849,4]
[328442602,1717391444688,-500.0,0.0002849,4]
[328442603,1717391444698,-500.0,0.0002849,4]
[328442604,1717391444708,-526.32802083,0.0002849,4]
[328442605,1717391444717,-513.02,0.0002849,4]
[328442606,1717391444727,-595.1,0.00028572,2]
[328442607,1717391444736,-180.0,0.00028604,2]
[328442608,1717391444745,-370.87441122,0.00028608,2]
[328442609,1717391444754,-500.0,0.00028762,4]
[328442610,1717391444764,-500.0,0.00028763,4]
[328442611,1717391444773,-500.0,0.00028763,4]
[328442612,1717391444782,-500.0,0.00028763,4]
[328442613,1717391444791,-500.0,0.00028763,4]
[328442614,1717391444800,-500.0,0.00028763,4]
[328442615,1717391444809,-500.0,0.00028763,4]
[328442616,1717391444818,-500.0,0.00028763,4]
[328442617,1717391444828,-500.0,0.00028763,4]
[328442618,1717391444837,-500.0,0.00028763,4]
[328442619,1717391444846,-500.0,0.00028763,4]
[328442620,1717391444855,-500.0,0.00028763,4]
[328442621,1717391444864,-500.0,0.00028763,4]
[328442622,1717391444873,-500.0,0.00028763,4]
[328442623,1717391444884,-500.0,0.00028763,4]
[328442624,1717391444893,-813.99,0.00028763,4]
[328442625,1717391444902,-500.0,0.00028763,4]
[328442626,1717391444911,-500.0,0.00028763,4]
[328442627,1717391444920,-590.4954011,0.00028763,4]
[328442628,1717391444929,-500.0,0.00028763,4]
[328442629,1717391444939,-500.0,0.00028763,4]
[328442630,1717391444948,-1757.84,0.00028763,4]
[328442631,1717391444958,-224.58655192,0.00028763,4]
[328442632,1717391444967,-500.0,0.00028763,4]
[328442633,1717391444976,-589.19892999,0.00028763,4]
[328442634,1717391444985,-500.0,0.00028763,4]
[328442635,1717391444995,-500.0,0.00028763,4]
[328442636,1717391445004,-177.80874875,0.00028763,4]
[328442637,1717391445013,-500.0,0.00028763,4]
[328442638,1717391445022,-500.0,0.00028763,4]
[328442639,1717391445032,-500.0,0.00028763,4]
[328442640,1717391445041,-500.0,0.00028763,4]
[328442641,1717391445050,-500.0,0.00028763,4]
[328442642,1717391445060,-1598.91,0.00028763,4]
[328442643,1717391445069,-500.0,0.00028763,4]
[328442644,1717391445079,-178.93318754,0.00028763,4]
[328442645,1717391445088,-500.0,0.00028763,4]
[328442646,1717391445098,-500.0,0.00028763,4]
[328442647,1717391445107,-500.0,0.00028763,4]
[328442648,1717391445116,-558.2,0.00028763,4]
[328442649,1717391445126,-500.0,0.00028763,4]
[328442650,1717391445135,-228.9156385,0.00028763,4]
[328442651,1717391445145,-500.0,0.00028763,4]
[328442652,1717391445154,-500.0,0.00028763,4]
[328442653,1717391445164,-507.84,0.00028763,4]
[328442654,1717391445173,-500.0,0.00028763,4]
[328442655,1717391445183,-500.0,0.00028763,4]
[328442656,1717391445192,-455.54189992,0.00028763,4]
[328442657,1717391445201,-500.0,0.00028763,4]
[328442658,1717391445211,-500.0,0.00028764,4]
[328442659,1717391445220,-500.0,0.00028764,4]
[328442660,1717391445230,-500.0,0.00028764,4]
[328442661,1717391445239,-500.0,0.00028764,4]
[328442662,1717391445249,-500.0,0.00028764,4]
[328442663,1717391445259,-500.0,0.00028764,4]
[328442664,1717391445268,-500.0,0.00028764,4]
[328442665,1717391445277,-589.88891335,0.00028764,4]
[328442666,1717391445286,-740.18,0.00028764,4]
[328442667,1717391445295,-198.07152688,0.00028764,4]
[328442668,1717391445304,-500.0,0.00028764,4]
[328442669,1717391445314,-196.10047726,0.00028764,4]
[328442670,1717391445323,-500.0,0.00028764,4]
[328442671,1717391445332,-500.0,0.00028764,4]
[328442672,1717391445341,-651.79,0.00028764,4]
[328442673,1717391445351,-1358.14,0.00028764,4]
[328442674,1717391445360,-500.0,0.00028764,4]
[328442675,1717391445369,-500.0,0.00028764,4]
[328442676,1717391445379,-500.0,0.00028764,4]
[328442677,1717391445390,-500.0,0.00028764,4]
[328442678,1717391445400,-500.0,0.00028764,4]
[328442679,1717391445410,-20851.91028736,0.00028764,4]
[328442680,1717391445424,-1432.04982035,0.00028764,4]
[328442681,1717391445437,-10538.3025,0.00028764,4]
[328442682,1717391445448,-440.07739229,0.00028764,4]
[328442683,1717391445457,-106.1577003,0.00028764,4]
[328442684,1717391445469,-393.8422997,0.00028764,4]
[328442685,1717391445478,-267.82378549,0.00028764,4]
[328442686,1717391445564,-232.17621451,0.00028764,4]
[328442687,1717391445573,-500.0,0.00028764,4]
[328442688,1717391445582,-307.98855453,0.00028764,4]
[328442696,1717391446454,-192.01144547,0.00028764,4]
[328442697,1717391446467,-500.0,0.00028764,4]
[328442698,1717391446476,-263.38855453,0.00028764,4]
[328442699,1717391446716,-236.61144547,0.00028764,4]
[328442700,1717391446726,-500.0,0.00028764,4]
[328442701,1717391446737,-500.0,0.00028764,4]
[328442702,1717391446747,-713.89,0.00028764,4]
[328442703,1717391446756,-500.0,0.00028764,4]
[328442704,1717391446766,-838.67,0.00028764,4]
[328442705,1717391446774,-500.0,0.00028764,4]
[328442706,1717391446783,-500.0,0.00028764,4]
[328442707,1717391446792,-372.14277094,0.00028764,4]
[328442708,1717391446804,-182.47988625,0.00028764,4]
[328442709,1717391446813,-513.02,0.00028764,4]
[328442710,1717391446822,-500.0,0.00028767,4]
[328442711,1717391446831,-355.97557075,0.00028767,4]
[328442712,1717391446841,-170.87,0.00028775,2]
[328442713,1717391446850,-188.58202432,0.00028955,2]
[328442714,1717391453152,1247.89177736,0.00017259,2]
[328442715,1717391475147,548.55290876,0.0002,2]
[328442716,1717391476968,2191.87131538,0.00017259,2]
[328442717,1717391495089,548.76898063,0.0002,2]
[328442718,1717391515292,570.91681937,0.0002,2]
[328442719,1717391515672,410.49182116,0.00017259,2]
[328442720,1717391533673,411.43118367,0.00017259,2]
[328442722,1717391769680,215.92,0.00029808,30]
[328442724,1717392083657,168.7361807,0.00031,30]
[328442725,1717392374289,-203.222631,0.00031747,120]
[328442726,1717392556922,226.51830624,0.000201,2]
[328442727,1717392574915,147.72246432,0.00020561,2]
[328442736,1717392631538,-78.79584192,0.00020561,2]
[328442738,1717392631547,-157.69,0.00024384,2]
[328442740,1717392631556,-292.16646388,0.00024384,2]
[328442741,1717392631568,-29.12353612,0.00024384,2]
[328442742,1717392631577,-1250.0,0.00025,2]
[328442743,1717392631586,-600.93,0.00025436,2]
[328442744,1717392631595,-1300.0,0.00027,2]
[328442745,1717392631604,-317.9,0.0002702,2]
[328442746,1717392631613,-340.73962574,0.0002702,2]
[328442747,1717392631626,-391.88037426,0.0002702,2]
[328442748,1717392631635,-150.99,0.0002702,2]
[328442749,1717392631644,-6965.69,0.00027211,2]
[328442750,1717392631653,-200.0,0.00027214,2]
[328442751,1717392631663,-250.0,0.00027337,2]
[328442752,1717392631672,-250.0,0.00027341,2]
[328442753,1717392631681,-557.41393885,0.00027356,2]
[328442754,1717392631693,-242.58606115,0.00027356,2]
[328442755,1717392631702,-704.98344389,0.0002739,2]
[328442756,1717392631713,-101.66024349,0.0002739,2]
[328442757,1717392631722,-3936.95507317,0.00027416,2]
[328442758,1717392631734,-560.5,0.00027416,2]
[328442759,1717392631745,-18342.20492683,0.00027416,2]
[328442760,1717392631755,-250.0,0.00027425,2]
[328442761,1717392631764,-65.19333075,0.00027425,2]
[328442762,1717392631776,-1267.96666925,0.00027425,2]
[328442763,1717392631785,-348.66,0.00027449,2]
[328442764,1717392631794,-1154.42,0.0002745,2]
[328442765,1717392631803,-703.53,0.00027631,2]
[328442766,1717392631812,-600.93,0.000277,2]
[328442767,1717392631821,-500.0,0.00027841,2]
[328442768,1717392631830,-127.15927134,0.00027941,4]
[328442769,1717392631841,-372.84072866,0.00027941,4]
[328442770,1717392631850,-466.44946614,0.00027941,4]
[328442771,1717392631859,-430.88892319,0.00027941,4]
[328442772,1717392631870,-69.11107681,0.00027941,4]
[328442773,1717392631881,-500.0,0.00027941,4]
[328442774,1717392631890,-500.0,0.00027941,4]
[328442775,1717392631899,-521.90749795,0.00027942,4]
[328442777,1717392631911,-155.5549835,0.00027942,4]
[328442779,1717392631920,-500.0,0.00027942,4]
[328442781,1717392631929,-365.30246327,0.00027942,4]
[328442783,1717392631940,-134.69753673,0.00027942,4]
[328442784,1717392631951,-165.38,0.0002795,2]
[328442785,1717392631960,-1745.81738146,0.00028193,2]
[328442786,1717392631969,-245.40508196,0.00028203,2]
[328442787,1717392631981,-1200.22252239,0.00028203,2]
[328442788,1717392631995,-664.03948097,0.00028203,2]
[328442789,1717392632006,-1521.76221221,0.00028203,2]
[328442790,1717392632018,-364.18813852,0.00028203,2]
[328442791,1717392632028,-1087.10900317,0.00028203,2]
[328442792,1717392632040,-1948.15041126,0.00028203,2]
[328442793,1717392632051,-9990.19263993,0.00028203,2]
[328442794,1717392632065,-627.85298596,0.00028203,2]
[328442800,1717392640399,-1429.90181486,0.00027,2]
[328442801,1717392640491,-662.70634916,0.00027,2]
[328442802,1717392641474,-453.8784,0.00027,2]
[328442803,1717392641490,-389.72999925,0.00027,2]
[328442804,1717392641511,-1088.08107342,0.00027,2]
[328442805,1717392641520,-7315.75568609,0.00028203,2]
[328442806,1717392641533,-1635.03183754,0.00028203,2]
[328442807,1717392641542,-2820.30077046,0.00028203,2]
[328442808,1717392641584,-4888.80922954,0.00028203,2]
[328442809,1717392641594,-500.0,0.00028215,4]
[328442810,1717392641604,-500.0,0.00028215,4]
[328442811,1717392641614,-500.0,0.00028215,4]
[328442812,1717392641624,-500.0,0.00028215,4]
[328442813,1717392641634,-171.81873933,0.00028216,4]
[328442814,1717392641643,-500.0,0.00028216,4]
[328442815,1717392641653,-1029.2835,0.0002839,2]
[328442816,1717392641662,-363.7557,0.0002839,2]
[328442817,1717392641673,-1851.59363,0.0002848,2]
[328442818,1717392641683,-500.0,0.00028489,4]
[328442819,1717392641692,-500.0,0.00028489,4]
[328442820,1717392641702,-500.0,0.00028489,4]
[328442821,1717392641712,-486.52991813,0.0002849,4]
[328442822,1717392641722,-419.50757395,0.00028592,2]
[328442823,1717392641731,-1728.939,0.00028663,2]
[328442824,1717392641741,-677.38,0.00028663,2]
[328442825,1717392641751,-500.0,0.00028763,4]
[328442826,1717392641760,-397.53367937,0.00028763,4]
[328442827,1717392641769,-500.0,0.00028763,4]
[328442828,1717392641780,-3459.73685803,0.00028935,2]
[328442829,1717392641789,-1000.0,0.00029,7]
[328442830,1717392641799,-1000.0,0.00029,7]
[328442831,1717392641808,-1000.0,0.00029,7]
[328442832,1717392641818,-1350.0,0.00029,2]
[328442833,1717392641828,-1486.59523125,0.00029034,2]
[328442834,1717392641838,-485.39983885,0.00029035,4]
[328442836,1717392641847,-500.0,0.00029035,4]
[328442838,1717392641857,-504.16680749,0.00029035,4]
[328442840,1717392641866,-506.98018506,0.00029035,4]
[328442842,1717392641876,-500.0,0.00029035,4]
[328442844,1717392641887,-596.69816721,0.00029035,2]
[328442846,1717392641897,-500.0,0.00029035,4]
[328442849,1717392641908,-199.83645639,0.00029035,4]
[328442851,1717392641918,-500.0,0.00029035,4]
[328442853,1717392641927,-500.0,0.00029035,4]
[328442855,1717392641937,-543.16,0.00029035,4]
[328442857,1717392641947,-500.0,0.00029035,4]
[328442859,1717392641957,-500.0,0.00029035,4]
[328442861,1717392641966,-500.0,0.00029035,4]
[328442863,1717392641976,-500.0,0.00029035,4]
[328442865,1717392641987,-1131.78,0.00029035,4]
[328442867,1717392641998,-500.0,0.00029035,4]
[328442868,1717392642007,-27718.62,0.00029035,4]
[328442870,1717392642017,-500.0,0.00029035,4]
[328442873,1717392642026,-500.0,0.00029035,4]
[328442875,1717392642036,-605.01735176,0.00029035,4]
[328442876,1717392642046,-500.0,0.00029035,4]
[328442877,1717392642055,-500.0,0.00029035,4]
[328442878,1717392642065,-500.0,0.00029035,4]
[328442879,1717392642075,-594.91,0.00029035,4]
[328442880,1717392642084,-500.0,0.00029035,4]
[328442881,1717392642098,-500.0,0.00029035,4]
[328442882,1717392642108,-698.9,0.00029035,4]
[328442883,1717392642118,-500.0,0.00029035,4]
[328442884,1717392642128,-500.0,0.00029035,4]
[328442885,1717392642140,-616.81,0.00029035,4]
[328442886,1717392642149,-451.38014792,0.00029036,4]
[328442887,1717392642159,-306.9152114,0.00029036,4]
[328442888,1717392642169,-500.0,0.00029036,4]
[328442889,1717392642179,-519.90824544,0.00029036,4]
[328442890,1717392642189,-512.07483999,0.00029036,4]
[328442891,1717392642198,-500.0,0.00029036,4]
[328442914,1717392642416,-530.85196069,0.00029036,4]
[328442916,1717392642425,-500.0,0.00029036,4]
[328442918,1717392642435,-510.87155571,0.00029036,4]
[328442920,1717392642444,-198.11718035,0.00029036,4]
[328442922,1717392642454,-564.30383344,0.00029036,4]
[328442924,1717392642463,-552.74410338,0.00029036,4]
[328442926,1717392642472,-504.78427921,0.00029036,4]
[328442928,1717392642482,-500.0,0.00029036,4]
[328442930,1717392642491,-363.63677021,0.00029036,4]
[328442932,1717392642500,-500.0,0.00029036,4]
[328442935,1717392642509,-329.14018391,0.00029037,4]
[328442939,1717392642520,-500.0,0.00029037,4]
[328442942,1717392642530,-11742.25340774,0.00029209,2]
[328442945,1717392642539,-214.4631,0.00029211,2]
[328442947,1717392642549,-500.0,0.00029309,4]
[328442949,1717392642558,-500.0,0.00029309,4]
[328442950,1717392642567,-500.0,0.00029309,4]
[328442951,1717392642577,-500.0,0.00029309,4]
[328442952,1717392642586,-543.16,0.00029309,4]
[328442953,1717392642595,-500.0,0.00029309,4]
[328442954,1717392642605,-500.0,0.00029309,4]
[328442955,1717392642614,-500.0,0.00029309,4]
[328442956,1717392642623,-500.0,0.00029309,4]
[328442957,1717392642634,-1131.78,0.00029309,4]
[328442958,1717392642645,-500.0,0.00029309,4]
[328442959,1717392642655,-27718.62,0.00029309,4]
[328442960,1717392642664,-500.0,0.00029309,4]
[328442961,1717392642673,-500.0,0.00029309,4]
[328442962,1717392642683,-500.0,0.00029309,4]
[328442963,1717392642692,-500.0,0.00029309,4]
[328442964,1717392642701,-500.0,0.00029309,4]
[328442965,1717392642711,-594.91,0.00029309,4]
[328442966,1717392642720,-500.0,0.00029309,4]
[328442967,1717392642730,-500.0,0.00029309,4]
[328442968,1717392642739,-698.9,0.00029309,4]
[328442969,1717392642748,-500.0,0.00029309,4]
[328442970,1717392642758,-500.0,0.00029309,4]
[328442971,1717392642767,-616.81,0.00029309,4]
[328442972,1717392642776,-500.0,0.0002931,4]
[328442973,1717392642786,-500.0,0.00029311,4]
[328442974,1717392642795,-3459.73685802,0.00029409,2]
[328442975,1717392642804,-172.31647898,0.00029483,2]
[328442976,1717392642813,-2500.0,0.00029553,2]
[328442977,1717392642823,-541.61558381,0.00029583,4]
[328442978,1717392642832,-536.86293026,0.00029583,4]
[328442979,1717392642841,-559.21857263,0.00029583,4]
[328442980,1717392642850,-500.0,0.00029583,4]
[328442981,1717392642859,-540.88412533,0.00029583,4]
[328442982,1717392642870,-495.80389373,0.00029583,4]
[328442983,1717392642879,-500.0,0.00029583,4]